bitfinex/quotes_SOLUSD_20220311
["timestamp","ask_amount","ask_price","bid_price","bid_amount"]
[1647003495234,23.3355,83.588,83.525,63.94176723]
[1647003495441,17.9515,83.58,83.53,17.9512]
[1647003495643,17.9515,83.58,83.525,63.94176723]
[1647003496342,23.3355,83.588,83.526,5.984]
[1647003496638,23.3355,83.588,83.53,17.9513]
[1647003496840,22.5239,83.599,83.531,125.682]
[1647003497638,22.5239,83.599,83.531,5.982]
[1647003497838,22.5239,83.599,83.54,17.9451]
[1647003498038,22.5239,83.599,83.541,64.64191732]
[1647003498439,22.5239,83.599,83.541,58.65991732]
[1647003499240,22.5239,83.599,83.55,17.9472]
[1647003500243,17.9482,83.59,83.55,17.9472]
[1647003500445,17.9482,83.59,83.541,58.65991732]
[1647003501244,17.9482,83.59,83.523,17.9087]
[1647003501444,17.9482,83.59,83.525,5.982]
[1647003501743,17.9482,83.59,83.53,17.951]
[1647003502244,17.9482,83.59,83.531,58.08558932]
[1647003503943,17.9482,83.59,83.53,17.9508]
[1647003504744,5.982,83.589,83.53,17.9508]
[1647003505044,17.9508,83.58,83.531,50.95257198]
[1647003506443,5.984,83.587,83.54,17.9494]
[1647003506646,17.9489,83.59,83.54,17.9494]
[1647003507046,23.8849,83.598,83.54,17.9494]
[1647003507446,21.59079313,83.597,83.541,5.983]
[1647003507647,21.59079313,83.597,83.55,17.9459]
[1647003507849,21.59079313,83.597,83.551,61.37516085]
[1647003508653,17.9487,83.59,83.54,17.9478]
[1647003509649,17.9487,83.59,83.54,79.1650249]
[1647003510353,17.9487,83.59,83.54,17.9478]
[1647003514057,5.983,83.589,83.52,5.982]
[1647003514256,17.9586,83.57,83.52,5.982]
[1647003514656,21.00307957,83.57,83.52,5.982]
[1647003514857,6.38756635,83.569,83.52,5.982]
[1647003515462,17.9552,83.56,83.52,5.982]
[1647003515660,17.9552,83.56,83.516,57.89718468]
[1647003516260,17.9552,83.56,83.51,17.9552]
[1647003516661,17.9552,83.56,83.497,24.2449]
[1647003517464,17.9591,83.55,83.497,24.2449]
[1647003517662,21.59079313,83.549,83.497,24.2449]
[1647003517961,21.59079313,83.549,83.49,17.9588]
[1647003518161,21.59079313,83.549,83.48,17.9623]
[1647003518360,24.7664,83.548,83.48,17.9623]
[1647003519084,137.6595,83.54,83.452,25.00766178]
[1647003519384,5.988,83.539,83.453,22.7906]
[1647003519581,9.03247957,83.539,83.453,22.7906]
[1647003519783,3.04447957,83.538,83.453,22.7906]
[1647003519983,6.38756635,83.536,83.454,48.16636459]
[1647003520182,5.988,83.535,83.454,48.16636459]
[1647003520582,5.988,83.535,83.453,22.7906]
[1647003520583,119.7,83.533,83.453,22.7906]
[1647003520781,137.6681,83.52,83.453,22.7906]
[1647003520981,30.7544,83.519,83.453,22.7906]
[1647003521684,17.9705,83.5,83.453,22.7906]
[1647003521881,29.5711,83.509,83.453,22.7906]
[1647003522081,23.5821,83.509,83.453,22.7906]
[1647003522881,23.5821,83.509,83.46,17.9664]
[1647003523281,23.5821,83.509,83.453,22.7906]
[1647003523982,17.968,83.5,83.453,22.7906]
[1647003524187,7.90964188,83.499,83.453,22.7906]
[1647003524482,17.968,83.5,83.453,22.7906]
[1647003524883,5.989,83.508,83.453,22.7906]
[1647003525082,5.989,83.508,83.46,17.9663]
[1647003525282,33.05630638,83.508,83.46,17.9663]
[1647003525683,33.05630638,83.508,83.453,22.7906]
[1647003525884,27.06730638,83.508,83.453,22.7906]
[1647003526084,17.9675,83.5,83.453,22.7906]
[1647003530289,17.9675,83.5,83.45,51.01306378]
[1647003531491,17.9675,83.5,83.433,5.989]
[1647003532091,17.9697,83.49,83.433,5.989]
[1647003532291,5.99,83.507,83.433,5.989]
[1647003532491,0.9110531,83.495,83.44,17.9697]
[1647003532691,0.9110531,83.495,83.441,5.99]
[1647003533291,0.9110531,83.495,83.435,5.99]
[1647003534996,0.9110531,83.495,83.44,17.9694]
[1647003535197,0.9110531,83.495,83.441,5.99]
[1647003535796,0.9110531,83.495,83.435,5.99]
[1647003535996,17.9696,83.49,83.435,5.99]
[1647003536598,17.9696,83.49,83.434,64.74268082]
[1647003536802,0.9110531,83.495,83.434,64.74268082]
[1647003537001,0.9110531,83.495,83.44,17.9697]
[1647003537200,0.9110531,83.495,83.434,64.74268082]
[1647003538103,0.9110531,83.495,83.433,5.99]
[1647003538302,5.99,83.494,83.432,24.6904]
[1647003539101,5.99,83.494,83.44,17.9711]
[1647003539709,0.9110531,83.495,83.44,17.9711]
[1647003541006,0.9110531,83.495,83.434,5.99]
[1647003542206,5.99,83.494,83.433,63.73643296]
[1647003542609,5.99,83.494,83.44,17.9713]
[1647003542809,24.8804,83.499,83.44,17.9713]
[1647003543010,24.8804,83.499,83.441,5.99]
[1647003543210,24.8804,83.499,83.435,125.69]
[1647003543710,24.8804,83.499,83.45,17.9658]
[1647003543909,45.71206698,83.499,83.451,52.59967123]
[1647003544716,45.71206698,83.499,83.45,17.9658]
[1647003544939,45.71206698,83.499,83.443,5.989]
[1647003545519,45.71206698,83.499,83.442,23.1296]
[1647003545715,45.71206698,83.499,83.443,50.57063171]
[1647003546715,45.71206698,83.499,83.444,5.99]
[1647003547319,45.71206698,83.499,83.45,17.969]
[1647003548219,24.8804,83.499,83.45,17.969]
[1647003549320,5.989,83.512,83.45,17.969]
[1647003549525,1.63334434,83.525,83.451,125.689]
[1647003549721,23.0704,83.528,83.47,17.9619]
[1647003550322,23.0704,83.528,83.471,48.08591306]
[1647003550521,23.4631,83.529,83.471,48.08591306]
[1647003550522,23.4631,83.529,83.472,119.7]
[1647003551124,23.4631,83.529,83.48,17.9584]
[1647003551325,19.94985921,83.541,83.48,17.9584]
[1647003551326,1.63334434,83.556,83.481,119.7]
[1647003551528,5.987,83.566,83.483,119.7]
[1647003551726,5.986,83.568,83.485,119.7]
[1647003551926,5.986,83.572,83.487,125.60751312]
[1647003552129,5.985,83.586,83.501,119.7]
[1647003552442,5.985,83.586,83.503,119.7]
[1647003552642,23.1992,83.587,83.504,5.984]
[1647003552844,23.1992,83.587,83.504,3.04447957]
[1647003553042,5.984,83.586,83.504,3.04447957]
[1647003553244,22.612,83.585,83.52,17.9485]
[1647003553443,21.43260779,83.584,83.521,59.58344561]
[1647003553844,21.43260779,83.584,83.503,5.984]
[1647003554042,21.43260779,83.584,83.502,23.2587]
[1647003554043,5.984,83.583,83.502,23.2587]
[1647003554443,5.984,83.583,83.503,148.17793059]
[1647003554646,21.43260779,83.584,83.504,5.984]
[1647003554843,21.43260779,83.584,83.505,174.73336214]
[1647003555045,21.43260779,83.584,83.505,203.21129273]
[1647003555244,21.43260779,83.584,83.51,17.9555]
[1647003555645,21.43260779,83.584,83.506,28.47793059]
[1647003556046,21.43260779,83.584,83.507,119.7]
[1647003556244,5.984,83.583,83.505,55.03336214]
[1647003556845,5.984,83.583,83.51,17.9556]
[1647003557348,17.9538,83.58,83.51,17.9556]
[1647003557545,5.984,83.579,83.51,17.9556]
[1647003558347,125.684,83.579,83.51,17.9556]
[1647003558848,5.984,83.579,83.51,17.9556]
[1647003559553,5.984,83.583,83.53,17.9475]
[1647003559851,21.43260779,83.584,83.531,50.15451675]
[1647003564054,21.43260779,83.584,83.521,23.0012]
[1647003564956,23.8034,83.583,83.521,23.0012]
[1647003565162,23.8034,83.583,83.522,55.10676226]
[1647003565554,23.8034,83.583,83.523,119.7]
[1647003565756,23.8034,83.583,83.53,17.9511]
[1647003566454,5.984,83.598,83.53,17.9511]
[1647003566657,23.3695,83.599,83.531,24.6975]
[1647003566857,23.3695,83.599,83.55,17.9449]
[1647003567254,27.52153786,83.598,83.55,17.9449]
[1647003567656,27.52153786,83.598,83.531,24.6975]
[1647003567857,23.8034,83.597,83.54,17.949]
[1647003568057,23.8034,83.597,83.531,24.6975]
[1647003568258,5.982,83.596,83.531,24.6975]
[1647003568457,23.8034,83.597,83.531,24.6975]
[1647003568858,17.9523,83.59,83.531,24.6975]
[1647003569660,23.8034,83.597,83.531,24.6975]
[1647003570359,119.7,83.596,83.504,5.984]
[1647003570567,5.984,83.595,83.505,24.5827]
[1647003570762,119.7,83.579,83.505,24.5827]
[1647003570962,17.957,83.57,83.505,24.5827]
[1647003571161,32.377,83.57,83.505,24.5827]
[1647003571363,0.45682162,83.569,83.505,24.5827]
[1647003571765,23.84572162,83.569,83.505,24.5827]
[1647003571964,23.84572162,83.569,83.51,17.9559]
[1647003573968,0.45682162,83.569,83.51,17.9559]
[1647003574167,5.985,83.589,83.505,144.2827]
[1647003574168,5.985,83.589,83.52,17.9467]
[1647003574367,29.3729,83.598,83.511,3.04447957]
[1647003574568,29.3729,83.598,83.521,119.7]
[1647003574770,29.3729,83.598,83.523,119.7]
[1647003575278,1.63334434,83.62,83.523,122.74447957]
[1647003575473,1.63334434,83.634,83.541,119.7]
[1647003575674,1.63334434,83.645,83.543,119.7]
[1647003575876,1.63334434,83.651,83.543,119.7]
[1647003576073,1.63334434,83.656,83.543,119.7]
[1647003576274,1.63334434,83.651,83.545,119.7]
[1647003576473,5.981,83.65,83.545,125.82]
[1647003576673,30.4795,83.65,83.545,125.82]
[1647003576873,30.4795,83.65,83.546,3.04447957]
[1647003577073,48.4183,83.65,83.56,17.9333]
[1647003577274,45.88626277,83.649,83.561,46.8235]
[1647003577474,5.98,83.648,83.561,46.8235]
[1647003577675,1.63334434,83.646,83.561,46.8235]
[1647003577879,28.20006277,83.648,83.561,46.8235]
[1647003578075,5.98,83.648,83.57,17.9431]
[1647003578276,23.6662,83.649,83.572,119.7]
[1647003578694,23.6662,83.649,83.571,80.39048779]
[1647003578896,5.98,83.648,83.571,80.39048779]
[1647003579395,17.9392,83.64,83.571,23.0188]
[1647003580193,17.9392,83.64,83.572,49.20402866]
[1647003580396,5.98,83.646,83.58,17.9409]
[1647003580592,5.979,83.648,83.58,17.9409]
[1647003581197,5.979,83.648,83.581,24.0694]
[1647003581394,5.979,83.648,83.59,17.9368]
[1647003581794,23.6662,83.649,83.59,17.9368]
[1647003581994,23.6662,83.649,83.581,24.0694]
[1647003582399,17.9403,83.64,83.581,24.0694]
[1647003582900,119.7,83.639,83.53,14.42]
[1647003583098,5.98,83.638,83.562,24.0694]
[1647003583497,17.946,83.62,83.562,24.0694]
[1647003583899,2.74582492,83.619,83.562,24.0694]
[1647003584300,122.44582492,83.619,83.528,17.5671]
[1647003584500,119.7,83.609,83.53,17.9503]
[1647003584701,14.42,83.6,83.529,49.2239]
[1647003584901,125.682,83.599,83.495,25.56331305]
[1647003585100,125.682,83.599,83.497,56.56436445]
[1647003585702,119.7,83.597,83.497,56.56436445]
[1647003586002,119.7,83.589,83.496,49.2239]
[1647003586303,119.7,83.579,83.496,49.2239]
[1647003586502,5.985,83.578,83.496,49.2239]
[1647003586702,119.7,83.577,83.496,49.2239]
[1647003586905,5.985,83.576,83.496,49.2239]
[1647003587104,17.96,83.57,83.496,49.2239]
[1647003587306,32.38,83.57,83.496,49.2239]
[1647003587507,119.7,83.569,83.496,49.2239]
[1647003587705,142.7347,83.569,83.496,49.2239]
[1647003587907,119.7,83.567,83.49,17.9573]
[1647003588110,5.985,83.566,83.49,17.9573]
[1647003588308,5.986,83.568,83.49,17.9573]
[1647003588508,5.986,83.568,83.491,59.86794497]
[1647003590108,5.986,83.568,83.5,17.9567]
[1647003590310,23.0347,83.569,83.5,17.9567]
[1647003592912,23.0347,83.569,83.501,3.04447957]
[1647003593512,23.0347,83.569,83.51,17.9549]
[1647003594812,29.0197,83.569,83.51,17.9549]
[1647003595617,5.985,83.576,83.51,17.9549]
[1647003595822,5.984,83.589,83.512,119.7]
[1647003596014,5.984,83.593,83.53,17.9455]
[1647003596418,5.982,83.619,83.531,119.7]
[1647003596619,5.982,83.627,83.533,119.7]
[1647003596820,5.982,83.637,83.551,119.7]
[1647003597020,5.981,83.639,83.56,17.9415]
[1647003597218,3.04447957,83.636,83.56,17.9415]
[1647003597446,5.981,83.635,83.551,24.4868]
[1647003597647,119.7,83.632,83.551,24.4868]
[1647003597845,119.7,83.629,83.551,24.4868]
[1647003598045,17.952,83.61,83.551,24.4868]
[1647003598449,5.982,83.609,83.532,24.5833]
[1647003598645,9.02647957,83.609,83.532,24.5833]
[1647003598849,3.04447957,83.608,83.532,24.5833]
[1647003599045,9.42138205,83.607,83.532,24.5833]
[1647003599245,9.42138205,83.607,83.533,23.7428]
[1647003599445,9.42138205,83.607,83.54,17.9489]
[1647003599847,23.6886,83.606,83.54,17.9489]
[1647003600346,5.982,83.605,83.54,17.9489]
[1647003600848,5.982,83.605,83.533,23.7428]
[1647003601446,5.982,83.605,83.534,119.7]
[1647003601650,23.6886,83.606,83.534,119.7]
[1647003601651,23.6886,83.606,83.534,125.56]
[1647003601848,5.982,83.617,83.541,119.7]
[1647003602048,27.13907957,83.618,83.534,5.86]
[1647003602049,23.4601,83.616,83.534,5.86]
[1647003602247,23.4601,83.616,83.534,128.60447957]
[1647003602448,23.4601,83.616,83.534,125.56]
[1647003602946,23.55617245,83.615,83.55,17.9464]
[1647003603147,5.982,83.614,83.55,17.9464]
[1647003604250,17.947,83.61,83.55,17.9464]
[1647003604450,5.982,83.609,83.55,17.9464]
[1647003604950,23.55617245,83.615,83.55,17.9464]
[1647003605350,23.51771821,83.615,83.55,17.9464]
[1647003605550,23.51771821,83.615,83.551,56.36782306]
[1647003605751,5.982,83.638,83.57,17.942]
[1647003605951,24.2571,83.637,83.57,17.942]
[1647003606254,5.98,83.643,83.571,119.7]
[1647003606453,5.98,83.647,83.571,119.7]
[1647003606650,28.16013404,83.647,83.573,119.7]
[1647003606852,5.98,83.647,83.573,119.7]
[1647003607053,5.98,83.656,83.591,119.7]
[1647003607254,1.63334434,83.674,83.591,119.7]
[1647003607451,28.6719,83.675,83.574,3.04447957]
[1647003607452,28.6719,83.675,83.593,119.7]
[1647003607654,22.6929,83.675,83.593,119.7]
[1647003607853,22.6929,83.675,83.597,119.7]
[1647003608162,22.6929,83.675,83.611,119.7]
[1647003608351,23.0035,83.688,83.611,119.7]
[1647003608953,21.60160009,83.687,83.613,119.7]
[1647003609152,23.0035,83.688,83.613,119.7]
[1647003609352,23.0035,83.688,83.63,17.9277]
[1647003609551,23.0035,83.688,83.614,119.7]
[1647003609752,23.0035,83.688,83.612,60.89824779]
[1647003609952,5.977,83.687,83.612,60.89824779]
[1647003610254,27.02027529,83.686,83.612,60.89824779]
[1647003610455,5.977,83.685,83.612,60.89824779]
[1647003610854,5.977,83.685,83.613,119.7]
[1647003611054,5.977,83.687,83.613,147.25664638]
[1647003611255,5.977,83.687,83.612,60.89824779]
[1647003611854,5.977,83.687,83.62,17.9313]
[1647003612055,5.977,83.687,83.621,119.7]
[1647003612254,23.0035,83.688,83.621,119.7]
[1647003612852,23.0035,83.688,83.64,17.9246]
[1647003613055,25.45082871,83.687,83.614,143.3692]
[1647003613254,25.45082871,83.687,83.615,6.0]
[1647003613860,25.45082871,83.687,83.614,23.6692]
[1647003614257,17.9324,83.68,83.614,23.6692]
[1647003614458,5.977,83.679,83.612,60.89824779]
[1647003614658,3.04447957,83.686,83.612,60.89824779]
[1647003614859,3.04447957,83.679,83.612,60.89824779]
[1647003615859,23.5769,83.678,83.612,60.89824779]
[1647003616261,26.62137957,83.678,83.612,60.89824779]
[1647003616664,17.9345,83.67,83.612,60.89824779]
[1647003616861,17.9345,83.67,83.602,23.2441]
[1647003617061,119.7,83.669,83.602,23.2441]
[1647003617260,17.46447957,83.67,83.602,23.2441]
[1647003617861,2.48907653,83.669,83.603,52.45462618]
[1647003618262,24.5584,83.668,83.603,52.45462618]
[1647003619065,24.5584,83.668,83.61,17.9337]
[1647003620263,24.5584,83.668,83.603,52.45462618]
[1647003620466,27.29827044,83.667,83.603,52.45462618]
[1647003620664,5.978,83.666,83.603,52.45462618]
[1647003621164,17.9366,83.66,83.603,52.45462618]
[1647003621363,5.978,83.659,83.603,52.45462618]
[1647003621764,27.29827044,83.667,83.603,52.45462618]
[1647003621765,5.978,83.666,83.603,52.45462618]
[1647003623269,17.9364,83.66,83.585,24.4812]
[1647003623469,27.29827044,83.667,83.585,24.4812]
[1647003623470,125.679,83.659,83.585,24.4812]
[1647003623769,9.02347957,83.659,83.585,24.4812]
[1647003624172,23.2325,83.658,83.586,56.80365873]
[1647003624371,5.979,83.657,83.586,56.80365873]
[1647003624572,5.979,83.657,83.578,27.55664638]
[1647003624772,3.04447957,83.656,83.56,17.9445]
[1647003624971,5.98,83.655,83.561,24.8621]
[1647003625371,17.9386,83.65,83.561,24.8621]
[1647003625575,14.42,83.64,83.562,53.89404035]
[1647003625772,28.9433,83.639,83.57,17.9426]
[1647003625976,31.98777957,83.639,83.57,17.9426]
[1647003626174,119.7,83.638,83.57,17.9426]
[1647003626373,17.9424,83.63,83.57,17.9426]
[1647003626573,22.55566221,83.629,83.57,17.9426]
[1647003626776,28.53566221,83.629,83.57,17.9426]
[1647003626974,28.53566221,83.629,83.562,53.89404035]
[1647003627377,22.9633,83.628,83.562,53.89404035]
[1647003627576,5.981,83.627,83.562,53.89404035]
[1647003627975,17.9437,83.62,83.562,53.89404035]
[1647003631579,5.981,83.619,83.562,53.89404035]
[1647003631880,22.9633,83.628,83.57,17.9425]
[1647003632479,5.98,83.645,83.571,119.7]
[1647003632681,30.7199,83.647,83.57,17.9425]
[1647003633280,27.35153964,83.646,83.571,24.967]
[1647003633480,17.9397,83.64,83.571,24.967]
[1647003633683,17.9397,83.64,83.571,30.947]
[1647003634080,5.98,83.645,83.581,53.1404572]
[1647003634281,27.35153964,83.646,83.582,5.979]
[1647003634986,27.35153964,83.646,83.581,53.1404572]
[1647003635181,5.979,83.645,83.59,17.9369]
[1647003635583,24.7351,83.664,83.59,17.9369]
[1647003635781,5.978,83.663,83.591,119.7]
[1647003635980,5.978,83.663,83.592,5.978]
[1647003636382,5.978,83.663,83.61,17.9316]
[1647003636584,5.978,83.663,83.611,63.69981243]
[1647003636783,24.7351,83.664,83.611,63.69981243]
[1647003637585,17.9352,83.66,83.611,63.69981243]
[1647003638891,5.978,83.663,83.611,63.69981243]
[1647003639092,1.63334434,83.676,83.612,119.7]
[1647003639291,27.09757957,83.68,83.611,63.69981243]
[1647003639492,24.0531,83.68,83.612,119.7]
[1647003639693,24.0531,83.68,83.62,17.9319]
[1647003639891,23.5353,83.696,83.62,17.9319]
[1647003640092,23.5353,83.696,83.621,22.7576]
[1647003640992,3.986,83.668,83.621,22.7576]
[1647003642398,3.986,83.668,83.63,17.9296]
[1647003642600,3.986,83.668,83.631,58.11639176]
[1647003643403,3.986,83.668,83.64,17.9278]
[1647003643807,3.986,83.668,83.631,58.11639176]
[1647003647228,3.986,83.668,83.621,22.7576]
[1647003647431,3.986,83.668,83.593,24.6051]
[1647003647432,3.04447957,83.667,83.593,24.6051]
[1647003647630,3.04447957,83.667,83.594,22.7635]
[1647003647932,3.986,83.668,83.595,119.7]
[1647003648130,3.986,83.668,83.595,144.66760187]
[1647003648335,3.986,83.668,83.601,119.7]
[1647003648730,3.986,83.668,83.596,24.96760187]
[1647003649030,3.986,83.668,83.603,119.7]
[1647003649630,3.986,83.668,83.62,17.9296]
[1647003650033,3.986,83.668,83.621,55.26810086]
[1647003652033,3.986,83.668,83.63,17.9298]
[1647003654638,3.986,83.668,83.621,55.26810086]
[1647003654938,3.986,83.668,83.611,24.6161]
[1647003655141,7.03047957,83.668,83.611,24.6161]
[1647003655339,17.9352,83.66,83.611,24.6161]
[1647003655938,5.63111794,83.659,83.611,24.6161]
[1647003656141,119.7,83.658,83.56,119.7]
[1647003656339,17.9372,83.65,83.567,18.242]
[1647003656539,5.979,83.649,83.567,18.242]
[1647003656738,9.02347957,83.649,83.567,18.242]
[1647003656938,9.02347957,83.649,83.594,51.45747293]
[1647003660451,5.979,83.649,83.594,51.45747293]
[1647003661355,5.979,83.649,83.6,17.9365]
[1647003661554,23.3896,83.658,83.6,17.9365]
[1647003662453,27.1250776,83.657,83.6,17.9365]
[1647003663855,17.9373,83.65,83.6,17.9365]
[1647003664056,17.9373,83.65,83.595,24.6593]
[1647003664356,125.679,83.649,83.581,5.979]
[1647003664558,128.72347957,83.649,83.568,5.979]
[1647003664756,119.7,83.647,83.568,5.979]
[1647003664980,25.58107957,83.648,83.569,58.64759387]
[1647003664981,5.98,83.646,83.569,58.64759387]
[1647003665181,3.04447957,83.646,83.57,5.98]
[1647003665389,17.9423,83.63,83.571,24.7447]
[1647003665584,21.1470776,83.629,83.572,5.98]
[1647003666080,21.1470776,83.629,83.571,24.7447]
[1647003666482,5.98,83.639,83.571,24.7447]
[1647003666781,3.04447957,83.645,83.571,24.7447]
[1647003666782,23.2983,83.638,83.58,17.9407]
[1647003667182,23.2983,83.638,83.572,5.98]
[1647003667482,17.9415,83.63,83.572,5.98]
[1647003667681,17.9415,83.63,83.571,24.7447]
[1647003668685,17.9415,83.63,83.57,17.9421]
[1647003668686,119.7,83.629,83.57,17.9421]
[1647003668884,17.9448,83.62,83.56,17.9446]
[1647003669684,0.36317328,83.619,83.561,50.27923498]
[1647003669885,0.36317328,83.619,83.562,5.981]
[1647003670087,26.34277957,83.628,83.57,17.9432]
[1647003670285,23.2983,83.628,83.57,17.9432]
[1647003670484,23.2983,83.628,83.571,5.98]
[1647003670886,23.2983,83.628,83.563,29.0578]
[1647003671087,21.90501336,83.627,83.581,54.98521209]
[1647003671296,21.90501336,83.627,83.563,23.0778]
[1647003671888,5.981,83.626,83.564,5.981]
[1647003672290,5.981,83.626,83.57,17.9432]
[1647003673900,17.9429,83.62,83.57,17.9432]
[1647003674102,17.9429,83.62,83.565,65.65964437]
[1647003674399,17.9429,83.62,83.563,23.0778]
[1647003674600,5.981,83.619,83.563,23.0778]
[1647003674802,17.9453,83.61,83.563,23.0778]
[1647003675409,7.53489188,83.609,83.564,52.9374652]
[1647003677714,17.9453,83.61,83.564,52.9374652]
[1647003677915,125.681,83.627,83.57,17.9433]
[1647003677916,5.981,83.627,83.57,17.9433]
[1647003678115,23.2983,83.628,83.57,17.9433]
[1647003678417,3.04447957,83.626,83.564,58.9184652]
[1647003678814,28.0285869,83.625,83.564,58.9184652]
[1647003679212,31.07306647,83.625,83.564,58.9184652]
[1647003679820,5.981,83.624,83.564,52.9374652]
[1647003680025,17.9429,83.62,83.55,17.9468]
[1647003680225,17.9429,83.62,83.513,119.7]
[1647003680226,125.681,83.619,83.541,5.981]
[1647003680425,152.90249995,83.619,83.526,24.871]
[1647003680629,119.7,83.617,83.526,24.871]
[1647003680825,5.982,83.616,83.526,24.871]
[1647003681030,119.7,83.615,83.527,55.55955898]
[1647003681228,17.9485,83.6,83.53,17.9514]
[1647003681525,1.41131834,83.598,83.53,17.9514]
[1647003681725,5.982,83.597,83.53,17.9514]
[1647003683130,17.9494,83.59,83.53,17.9514]
[1647003683632,23.4408,83.589,83.53,17.9514]
[1647003685245,14.42,83.62,83.53,17.9514]
[1647003685446,5.982,83.619,83.53,17.9514]
[1647003685846,22.77639403,83.614,83.53,17.9514]
[1647003686047,24.3709,83.613,83.53,17.9514]
[1647003686252,24.3709,83.613,83.55,17.9443]
[1647003686648,24.3709,83.613,83.551,51.86846045]
[1647003688250,24.3709,83.613,83.56,17.9443]
[1647003688653,5.982,83.633,83.56,17.9443]
[1647003688856,24.3709,83.632,83.561,23.7107]
[1647003689052,32.7438792,83.631,83.561,23.7107]
[1647003689253,32.7438792,83.631,83.57,17.9421]
[1647003689452,32.7438792,83.631,83.571,70.31970033]
[1647003689853,26.7628792,83.631,83.571,70.31970033]
[1647003690253,26.7628792,83.631,83.58,17.9404]
[1647003690656,24.3709,83.632,83.58,17.9404]
[1647003691857,24.3709,83.632,83.571,70.31970033]
[1647003692959,5.98,83.631,83.571,70.31970033]
[1647003693160,3.04447957,83.643,83.581,119.7]
[1647003693359,3.5627,83.654,83.581,119.7]
[1647003693559,3.5627,83.654,83.583,119.7]
[1647003693760,3.5627,83.654,83.585,119.7]
[1647003694064,3.5627,83.654,83.586,30.1495]
[1647003694360,24.62929854,83.648,83.59,17.9325]
[1647003695163,28.6256,83.647,83.587,46.89267639]
[1647003695365,28.6256,83.647,83.547,24.4587]
[1647003695564,148.3256,83.647,83.553,24.1495]
[1647003695764,119.7,83.639,83.553,24.1495]
[1647003695964,5.981,83.638,83.553,24.1495]
[1647003696164,3.986,83.6,83.553,24.1495]
[1647003696368,3.986,83.6,83.554,65.66102803]
[1647003697367,3.986,83.6,83.56,17.9446]
[1647003701683,3.986,83.6,83.554,65.66102803]
[1647003701881,21.9352,83.6,83.49,14.42]
[1647003702083,21.9352,83.6,83.508,51.2758]
[1647003702700,119.7,83.598,83.509,63.45775288]
[1647003702896,119.7,83.598,83.53,17.9506]
[1647003703096,122.74447957,83.598,83.531,48.16476639]
[1647003703297,3.04447957,83.598,83.531,48.16476639]
[1647003703497,17.9522,83.59,83.531,48.16476639]
[1647003703696,22.6237,83.589,83.531,48.16476639]
[1647003704098,22.6237,83.589,83.54,17.9495]
[1647003704496,22.6237,83.589,83.531,48.16476639]
[1647003705097,119.7,83.588,83.52,17.9527]
[1647003705297,119.7,83.588,83.443,79.8977]
[1647003705298,119.7,83.579,83.443,79.8977]
[1647003705496,14.42,83.58,83.471,24.9503]
[1647003705497,119.7,83.559,83.471,24.9503]
[1647003705697,119.7,83.549,83.471,24.9503]
[1647003706097,1.35909564,83.548,83.472,66.00195514]
[1647003706297,119.7,83.547,83.472,66.00195514]
[1647003706596,5.987,83.546,83.472,66.00195514]
[1647003706798,119.7,83.545,83.472,66.00195514]
[1647003706999,119.7,83.543,83.472,66.00195514]
[1647003707197,17.9653,83.53,83.472,66.00195514]
[1647003707404,28.04262802,83.529,83.472,66.00195514]
[1647003707800,47.01737619,83.529,83.472,66.00195514]
[1647003707998,34.1104319,83.528,83.472,66.00195514]